bitfinex/quotes_SOLUSD_20250928
["timestamp","ask_amount","ask_price","bid_price","bid_amount"]
[1759093732004,5.01533201,207.67,207.66,36.94]
[1759093732995,5.01533201,207.67,207.63,15.92478948]
[1759093733179,5.01533201,207.67,207.65,13.59559401]
[1759093733903,5.01533201,207.67,207.66,36.94]
[1759093734486,5.73533201,207.67,207.66,36.94]
[1759093735288,5.01533201,207.67,207.66,36.94]
[1759093736996,4.01533201,207.67,207.66,36.94]
[1759093740009,16.85299015,207.68,207.66,36.94]
[1759093740309,5.01486389,207.7,207.67,0.66]
[1759093740506,5.01486389,207.7,207.68,36.94]
[1759093740698,5.01486389,207.7,207.68,37.6]
[1759093741303,5.73486389,207.7,207.68,36.94]
[1759093742511,17.05145512,207.7,207.69,36.94]
[1759093743015,17.77145512,207.7,207.69,36.94]
[1759093743387,17.05145512,207.7,207.69,36.94]
[1759093744796,17.05145512,207.7,207.67,0.66]
[1759093744999,17.05145512,207.7,207.68,36.94]
[1759093747220,17.05145512,207.7,207.68,37.6]
[1759093748108,5.01486389,207.7,207.68,36.94]
[1759093748300,5.01486389,207.7,207.69,0.66]
[1759093752724,4.51486389,207.7,207.69,0.66]
[1759093753334,17.56960523,207.72,207.68,36.94]
[1759093753521,0.72,207.71,207.68,36.94]
[1759093753716,0.72,207.71,207.68,37.66]
[1759093754022,0.72,207.71,207.68,36.94]
[1759093754406,4.81463649,207.7,207.68,36.94]
[1759093755232,0.72,207.69,207.64,0.72]
[1759093755433,0.72,207.69,207.65,50.53559401]
[1759093755617,0.72,207.68,207.65,50.53559401]
[1759093756621,4.81533201,207.67,207.65,50.53559401]
[1759093758231,4.81533201,207.67,207.65,51.25559401]
[1759093758627,12.03799329,207.68,207.65,51.25559401]
[1759093759020,12.03799329,207.68,207.65,50.53559401]
[1759093759220,12.03799329,207.68,207.66,0.72]
[1759093759420,12.03799329,207.68,207.67,36.94]
[1759093760027,12.03799329,207.68,207.66,0.72]
[1759093760538,4.81486831,207.69,207.67,36.94]
[1759093761322,8.06294118,207.69,207.67,36.94]
[1759093763942,20.10011196,207.69,207.68,36.94]
[1759093765041,20.10011196,207.69,207.66,0.72]
[1759093765242,16.85203909,207.69,207.68,36.94]
[1759093765437,20.10110023,207.69,207.68,36.94]
[1759093766727,19.60110023,207.69,207.68,36.94]
[1759093768544,20.27110023,207.69,207.52,64.15684768]
[1759093768724,2.60270658,207.65,207.61,0.69]
[1759093768924,2.60270658,207.65,207.62,36.94]
[1759093769222,2.60270658,207.65,207.62,37.63]
[1759093771151,4.81602774,207.64,207.62,37.63]
[1759093771322,4.81602774,207.64,207.62,0.69]
[1759093771674,4.81602774,207.64,207.59,0.69]
[1759093771675,3.27270658,207.63,207.59,0.69]
[1759093771823,2.60270658,207.61,207.6,50.53559401]
[1759093772428,2.60270658,207.62,207.61,13.59559401]
[1759093772650,3.27270658,207.62,207.61,50.53559401]
[1759093773045,2.60270658,207.62,207.58,26.0]
[1759093773252,2.60270658,207.62,207.6,13.59559401]
[1759093773440,4.81672366,207.61,207.6,13.59559401]
[1759093776356,4.81672366,207.61,207.59,36.94]
[1759093776357,5.48672366,207.61,207.57,13.59559401]
[1759093776655,2.60270658,207.59,207.58,36.94]
[1759093776847,3.27270658,207.59,207.58,36.94]
[1759093777449,8.0898943,207.59,207.58,36.94]
[1759093780855,8.0898943,207.59,207.57,13.59559401]
[1759093781056,8.0898943,207.59,207.58,36.94]
[1759093781259,7.4198943,207.59,207.58,36.94]
[1759093781740,20.13286361,207.59,207.58,36.94]
[1759093782060,19.46286361,207.59,207.58,36.94]
[1759093784456,19.46286361,207.59,207.56,14.28559401]
[1759093784660,19.46286361,207.59,207.58,36.94]
[1759093785358,26.0,207.65,207.59,13.59559401]
[1759093785576,26.0,207.65,207.61,13.59559401]
[1759093785744,4.81602774,207.64,207.62,37.63]
[1759093785948,4.81602774,207.64,207.63,14.28559401]
[1759093786157,14.64089914,207.68,207.63,14.28559401]
[1759093786364,14.64089914,207.68,207.64,37.63]
[1759093786546,14.64089914,207.68,207.65,0.69]
[1759093786749,4.81512486,207.68,207.66,37.63]
[1759093787058,16.85089598,207.71,207.67,37.63]
[1759093787245,16.85089598,207.71,207.68,0.69]
[1759093787447,16.85089598,207.71,207.69,36.94]
[1759093796851,4.81440469,207.71,207.7,0.69]
[1759093799479,4.81394117,207.73,207.7,0.69]
[1759093799666,4.81394117,207.73,207.71,0.69]
[1759093799977,4.81394117,207.73,207.72,36.92]
[1759093800376,4.81394117,207.73,207.72,37.61]
[1759093801952,4.81370944,207.74,207.72,37.61]
[1759093802251,4.81370944,207.74,207.73,0.69]
[1759093805894,5.01349307,207.75,207.73,0.69]
[1759093806384,5.01349307,207.75,207.74,0.69]
[1759093806971,5.01349307,207.75,207.72,37.61]
[1759093807176,5.01349307,207.75,207.73,0.69]
[1759093807486,5.01349307,207.75,207.74,0.69]
[1759093808076,5.01349307,207.75,207.72,37.61]
[1759093808270,5.01349307,207.75,207.73,0.69]
[1759093811188,5.01349307,207.75,207.74,36.92]
[1759093811879,5.01349307,207.75,207.72,13.59559401]
[1759093812065,5.01349307,207.75,207.68,13.59559401]
[1759093812066,5.01349307,207.75,207.73,36.92]
[1759093812273,5.01349307,207.75,207.73,37.63]
[1759093815691,2.32484742,207.74,207.69,13.59559401]
[1759093815900,4.81428956,207.72,207.7,36.92]
[1759093816084,4.81428956,207.72,207.7,37.63]
[1759093816577,4.81428956,207.72,207.71,13.59559401]
[1759093816774,4.81428956,207.72,207.71,14.30559401]
[1759093817273,4.81383383,207.74,207.71,14.30559401]
[1759093817473,4.81383383,207.74,207.72,0.71]
[1759093817673,4.81383383,207.74,207.73,36.92]
[1759093820186,17.50810744,207.74,207.73,36.92]
[1759093820977,5.49383383,207.74,207.73,36.92]
[1759093821178,4.81383383,207.74,207.73,36.92]
[1759093829606,4.81383383,207.74,207.73,37.62]
[1759093830198,4.81383383,207.74,207.73,36.92]
[1759093841310,8.06456388,207.74,207.73,36.92]
[1759093843697,8.06456388,207.74,207.73,37.62]
[1759093847721,26.0,207.71,207.64,0.7]
[1759093847908,1.66484742,207.67,207.65,36.9]
[1759093848307,2.34484742,207.67,207.65,36.9]
[1759093848821,1.66484742,207.67,207.65,36.9]
[1759093849015,1.66484742,207.67,207.65,37.6]
[1759093850208,4.8155639,207.66,207.65,37.6]
[1759093853709,16.85306498,207.68,207.65,37.6]
[1759093853914,19.1879124,207.68,207.65,37.6]
[1759093856935,19.1879124,207.68,207.66,13.59559401]
[1759093856936,4.81510015,207.68,207.66,13.59559401]
[1759093857139,4.81510015,207.68,207.67,0.67]
[1759093858053,4.81463649,207.7,207.67,0.67]
[1759093858259,16.85122772,207.7,207.68,36.92]
[1759093860946,16.85122772,207.7,207.68,37.59]
[1759093861144,16.85122772,207.7,207.69,0.67]
[1759093861556,14.48400724,207.74,207.7,13.59559401]
[1759093861771,4.81370944,207.74,207.71,36.92]
[1759093861965,4.81370944,207.74,207.71,37.59]
[1759093862275,4.81370944,207.74,207.72,0.67]
[1759093863566,4.81370944,207.74,207.73,36.92]
[1759093864774,4.81370944,207.74,207.73,37.59]
[1759093865069,10.01348453,207.75,207.73,40.19236416]
[1759093865270,10.01348453,207.75,207.74,0.67]
[1759093870675,10.01348453,207.75,207.73,36.92]
[1759093870883,10.01348453,207.75,207.73,37.59]
[1759093877687,10.01348453,207.75,207.74,36.9]
[1759093888740,10.01348453,207.75,207.71,13.59559401]
[1759093888923,0.68,207.74,207.73,13.59559401]
[1759093889126,0.68,207.74,207.73,50.49559401]
[1759093889330,22.04717887,207.75,207.73,50.49559401]
[1759093889331,22.72717887,207.75,207.73,50.49559401]
[1759093889524,22.04717887,207.75,207.73,50.49559401]
[1759093889720,22.72717887,207.75,207.73,50.49559401]
[1759093890849,4.81370944,207.74,207.73,13.59559401]
[1759093891156,4.81370944,207.74,207.73,50.49559401]
[1759093891727,4.81370944,207.74,207.73,13.59559401]
[1759093891939,4.81370944,207.74,207.73,50.49559401]
[1759093892245,4.81370944,207.74,207.73,50.36320667]
[1759093892953,4.81370944,207.74,207.73,13.46320667]
[1759093893252,4.81370944,207.74,207.73,50.36320667]
[1759093894249,4.81370944,207.74,207.73,13.46320667]
[1759093894546,4.81370944,207.74,207.73,50.36320667]
[1759093894921,4.81370944,207.74,207.73,13.46320667]
[1759093895122,4.81370944,207.74,207.73,50.36320667]
[1759093896337,4.81370944,207.74,207.73,13.46320667]
[1759093896525,4.81370944,207.74,207.73,50.36320667]
[1759093896925,4.81370944,207.74,207.73,13.46320667]
[1759093897234,4.81370944,207.74,207.73,50.36320667]
[1759093897538,5.49370944,207.74,207.73,50.36320667]
[1759093899947,4.81370944,207.74,207.73,51.08320667]
[1759093900127,4.81370944,207.74,207.73,50.36320667]
[1759093901345,4.81370944,207.74,207.73,51.08320667]
[1759093901529,4.81370944,207.74,207.73,50.36320667]
[1759093901729,4.81370944,207.74,207.73,51.08320667]
[1759093902333,4.81370944,207.74,207.73,50.36320667]
[1759093905361,4.81370944,207.74,207.73,51.08320667]
[1759093905658,20.08679022,207.74,207.73,36.9]
[1759093905825,20.08679022,207.74,207.72,0.72]
[1759093906032,16.84798305,207.74,207.73,36.9]
[1759093906336,20.08751938,207.74,207.73,36.9]
[1759093908254,8.05324577,207.74,207.73,36.9]
[1759093910557,8.0561925,207.74,207.73,36.9]
[1759093912052,8.0561925,207.74,207.73,51.18559401]
[1759093916257,8.7261925,207.74,207.73,50.49559401]
[1759093916633,8.0561925,207.74,207.73,50.49559401]
[1759093917553,8.0561925,207.74,207.71,0.69]
[1759093917854,4.81370944,207.74,207.72,50.49559401]
[1759093918046,4.81370944,207.74,207.72,51.18559401]
[1759093923056,4.81370944,207.74,207.73,36.9]
[1759093923256,8.05477534,207.74,207.73,36.9]
[1759093925176,8.72477534,207.74,207.68,0.69]
[1759093925377,1.66447226,207.7,207.68,13.59559401]
[1759093925578,0.67,207.71,207.69,36.9]
[1759093925768,3.24059016,207.7,207.69,36.9]
[1759093926070,3.91059016,207.7,207.67,0.69]
[1759093926268,3.91059016,207.7,207.68,36.9]
[1759093926269,0.67,207.7,207.68,36.9]
[1759093926467,1.66447226,207.72,207.65,13.59559401]
[1759093926671,1.66447226,207.68,207.63,0.69]
[1759093926873,1.66447226,207.66,207.64,36.9]
[1759093927183,4.81579581,207.65,207.64,36.9]
[1759093929368,16.85528533,207.65,207.64,36.9]
[1759093929566,4.81510015,207.68,207.65,13.59559401]
[1759093929766,4.81510015,207.68,207.66,37.59]
[1759093930074,4.81510015,207.68,207.67,0.69]
[1759093930755,12.03729429,207.69,207.67,0.69]
[1759093930959,12.03729429,207.69,207.68,36.9]
[1759093933478,4.81463649,207.7,207.68,37.58]
[1759093934992,16.85041643,207.71,207.68,37.58]
[1759093935210,17.52041643,207.71,207.68,37.58]
[1759093935367,0.67,207.7,207.69,36.9]
[1759093936571,17.52122772,207.7,207.65,13.59559401]
[1759093936768,0.67,207.69,207.64,0.68]
[1759093936982,1.66447226,207.68,207.65,36.9]
[1759093937501,2.33447226,207.68,207.65,36.9]
[1759093938082,2.33447226,207.68,207.65,37.58]
[1759093938281,2.33447226,207.68,207.66,0.68]
[1759093938282,1.66447226,207.68,207.66,0.68]
[1759093938579,19.18569998,207.7,207.67,36.9]
[1759093938775,0.67,207.69,207.67,36.9]
[1759093941409,4.81510015,207.68,207.67,36.9]
[1759093946115,5.47510015,207.68,207.67,36.9]
[1759093946618,16.85285053,207.68,207.65,0.7]
[1759093946911,16.85285053,207.68,207.66,36.9]
[1759093947121,16.85285053,207.68,207.62,15.26006627]
[1759093947314,16.85285053,207.68,207.65,0.7]
[1759093947499,17.51285053,207.68,207.65,0.7]
[1759093948430,17.51285053,207.68,207.62,15.26006627]
[1759093948606,17.51285053,207.68,207.64,13.59559401]
[1759093948808,0.66,207.67,207.64,14.29559401]
[1759093949008,0.66,207.67,207.65,36.9]
[1759093951120,4.8155639,207.66,207.65,36.9]
[1759093951618,4.8155639,207.66,207.64,14.29559401]
[1759093951818,4.8155639,207.66,207.65,36.9]
[1759093952028,12.03775038,207.68,207.65,37.6]
[1759093952213,12.03775038,207.68,207.66,0.7]
[1759093952407,12.03775038,207.68,207.67,36.9]
[1759093953321,16.85285053,207.68,207.67,36.9]
[1759093957225,16.85041643,207.71,207.67,36.9]
[1759093957406,4.81370944,207.74,207.7,13.59559401]
[1759093957723,4.81370944,207.74,207.73,1.66447226]
[1759093957907,4.81370944,207.74,207.73,2.36447226]
[1759093975242,5.53370944,207.74,207.72,13.59559401]
[1759093977453,5.53370944,207.74,207.71,39.22447226]
[1759093977454,16.84798305,207.74,207.66,105.3]
[1759093977645,2.38447226,207.73,207.67,36.88]
[1759093977834,1.66447226,207.71,207.67,36.88]
[1759093978039,0.72,207.7,207.67,36.88]
[1759093978253,0.72,207.69,207.67,36.88]
[1759093978449,0.72,207.68,207.67,36.88]
[1759093978651,0.72,207.68,207.63,39.59559401]
[1759093978832,1.66447226,207.71,207.63,13.59559401]
[1759093978833,0.72,207.67,207.63,13.59559401]
[1759093979029,0.72,207.66,207.64,36.88]
[1759093979537,4.81579581,207.65,207.64,50.47559401]
[1759093979962,4.81579581,207.65,207.64,51.13559401]
[1759093981550,16.85381905,207.67,207.64,51.13559401]
[1759093981727,4.81533201,207.67,207.64,51.13559401]
[1759093982546,4.81498999,207.69,207.65,16.85805346]
[1759093982745,4.81498999,207.69,207.67,2.60245945]
[1759093983067,0.72,207.72,207.68,37.54]
[1759093983068,4.81417292,207.72,207.68,37.54]
[1759093983249,0.72,207.71,207.66,13.59559401]
[1759093983448,4.81486831,207.69,207.67,36.88]
[1759093984658,4.81486831,207.69,207.67,37.54]
[1759093985043,4.81486831,207.69,207.67,36.88]
[1759093986268,16.85203909,207.69,207.68,36.88]
[1759093986472,17.57203909,207.69,207.68,36.88]
[1759093986852,16.85203909,207.69,207.68,36.88]
[1759093989168,12.03717078,207.69,207.68,36.88]
[1759093990850,4.81463649,207.7,207.68,37.54]
[1759093991056,4.81463649,207.7,207.69,16.85805346]
[1759093992173,12.03588712,207.72,207.69,16.85805346]
[1759093992466,12.03588712,207.72,207.7,37.59]
[1759093995173,0.72,207.71,207.7,36.88]
[1759093995473,12.03588712,207.72,207.7,36.88]
[1759093996984,16.85006004,207.72,207.7,36.88]
[1759093997697,17.57006004,207.72,207.7,36.88]
[1759093998381,16.85006004,207.72,207.7,36.88]
[1759094000093,12.03588712,207.72,207.7,36.88]
[1759094002594,12.03588712,207.72,207.71,36.88]
[1759094004990,12.73588712,207.72,207.71,36.88]
[1759094006201,16.85006004,207.72,207.71,36.88]
[1759094012978,16.85006004,207.72,207.71,37.54]
[1759094014102,16.85006004,207.72,207.71,36.88]
[1759094015215,12.03588712,207.72,207.71,36.88]
[1759094016098,12.73588712,207.72,207.71,36.88]
[1759094016315,17.55006004,207.72,207.71,36.88]
[1759094016510,16.85006004,207.72,207.71,36.88]
[1759094017392,20.07977843,207.72,207.71,36.88]
[1759094018312,12.03588712,207.72,207.71,36.88]
[1759094018488,15.26560551,207.72,207.71,36.88]
[1759094019292,20.07977843,207.72,207.71,36.88]
[1759094019606,16.85006004,207.72,207.71,36.88]
[1759094019784,20.07977843,207.72,207.71,36.88]
[1759094019985,16.85006004,207.72,207.71,36.88]
[1759094020199,20.07977843,207.72,207.71,37.54]
[1759094020502,16.85006004,207.72,207.71,37.54]
[1759094020800,20.07977843,207.72,207.71,37.54]
[1759094020995,16.85006004,207.72,207.71,0.66]
[1759094021198,20.07977843,207.72,207.71,37.54]
[1759094021805,20.07977843,207.72,207.71,36.88]
[1759094023581,20.77977843,207.72,207.71,36.88]
[1759094024407,20.77977843,207.72,207.64,0.66]
[1759094024594,2.60245945,207.7,207.65,13.59559401]
[1759094024791,7.4175596,207.68,207.63,0.66]
[1759094024992,0.7,207.67,207.64,37.54]
[1759094025198,6.53326366,207.66,207.58,13.59559401]
[1759094025500,3.30245945,207.66,207.62,0.66]
[1759094025694,3.30245945,207.66,207.63,37.54]
[1759094026298,3.22795188,207.65,207.63,37.54]
[1759094026899,4.81602774,207.64,207.63,37.54]
[1759094027914,4.81579581,207.65,207.63,37.54]
[1759094028412,4.81579581,207.65,207.64,36.88]
[1759094028793,5.51579581,207.65,207.64,36.88]
[1759094029398,17.55528533,207.65,207.61,0.66]
[1759094029601,17.55528533,207.65,207.62,36.88]
[1759094030095,17.55528533,207.65,207.62,0.66]
[1759094030303,17.55528533,207.65,207.63,36.88]
[1759094030504,17.55528533,207.65,207.64,36.88]
[1759094032102,17.51528533,207.65,207.64,36.88]
[1759094032415,16.85528533,207.65,207.64,36.88]
[1759094032621,16.85528533,207.65,207.64,37.57]
[1759094033422,12.03948952,207.65,207.64,36.88]
[1759094033822,12.03948952,207.65,207.63,0.69]
[1759094034017,12.03948952,207.65,207.64,36.88]
[1759094034724,12.03948952,207.65,207.64,37.57]
[1759094035026,12.03948952,207.65,207.64,36.88]
[1759094035426,12.03948952,207.65,207.63,0.69]
[1759094035620,12.03948952,207.65,207.64,36.88]
[1759094037906,12.03948952,207.65,207.63,0.69]
[1759094038207,12.03948952,207.65,207.64,36.88]
[1759094040339,4.8155639,207.66,207.64,37.57]
[1759094040745,16.85366205,207.67,207.64,37.57]
[1759094041124,17.51366205,207.67,207.64,37.57]
[1759094041323,16.85366205,207.67,207.64,37.57]
[1759094041526,4.8151314,207.68,207.65,14.28559401]
[1759094041713,16.85288178,207.68,207.66,0.69]
[1759094041913,16.85288178,207.68,207.67,36.88]
[1759094042134,16.85288178,207.68,207.67,37.57]
[1759094042541,4.8151314,207.68,207.67,36.88]
[1759094043660,4.81486831,207.69,207.67,36.88]
[1759094044035,16.85203909,207.69,207.66,0.69]
[1759094044236,16.85203909,207.69,207.67,37.57]
[1759094045260,16.85203909,207.69,207.67,36.88]
[1759094045438,12.03717078,207.69,207.67,36.88]
[1759094046141,12.03717078,207.69,207.68,0.69]
[1759094049068,4.81463649,207.7,207.68,0.69]
[1759094050140,4.81463649,207.7,207.69,0.69]
[1759094051895,16.8497932,207.72,207.69,0.69]
[1759094052171,17.5597932,207.72,207.7,36.88]
[1759094054674,0.71,207.71,207.7,36.88]
[1759094054879,0.71,207.71,207.67,13.59559401]
[1759094055058,16.8497932,207.72,207.7,36.88]
[1759094055260,20.07391268,207.72,207.7,36.88]
[1759094055458,16.8497932,207.72,207.7,36.88]
[1759094055675,0.71,207.71,207.7,36.88]
[1759094056854,5.52440469,207.71,207.7,36.88]
[1759094058653,4.81440469,207.71,207.7,36.88]
[1759094060254,4.81440469,207.71,207.7,37.57]
[1759094061776,16.8497932,207.72,207.7,37.57]
[1759094061976,20.07391268,207.72,207.7,37.57]
[1759094062172,16.8497932,207.72,207.7,37.57]
[1759094062366,20.07391268,207.72,207.71,0.66]
[1759094062560,8.0380807,207.73,207.71,0.66]
[1759094062777,4.81396122,207.73,207.71,14.25559401]
[1759094062955,4.81396122,207.73,207.72,0.66]
[1759094064377,17.56881415,207.73,207.72,36.86]
[1759094064676,20.79293363,207.73,207.72,36.86]
[1759094064863,17.56881415,207.73,207.72,36.86]
[1759094065470,16.84881415,207.73,207.72,36.86]
[1759094068486,17.56881415,207.73,207.72,36.86]
[1759094069076,16.84881415,207.73,207.72,36.86]
[1759094070080,16.84881415,207.73,207.72,37.52]
[1759094070279,4.81396122,207.73,207.72,36.86]
[1759094072785,2.38538923,207.73,207.67,13.59559401]
[1759094072995,2.38538923,207.73,207.66,0.66]
[1759094072996,1.66538923,207.68,207.62,11.84]
[1759094073159,1.66538923,207.63,207.6,0.66]
[1759094073363,2.38538923,207.63,207.6,0.66]
[1759094073673,7.20396967,207.63,207.6,0.66]
[1759094073871,1.66538923,207.61,207.58,0.66]
[1759094074082,0.72,207.6,207.56,0.66]
[1759094074282,0.72,207.6,207.56,37.54]
[1759094074664,5.53858044,207.6,207.56,37.54]
[1759094074865,16.86015703,207.59,207.56,37.54]
[1759094075289,17.58015703,207.59,207.56,36.88]
[1759094075887,16.86015703,207.59,207.56,37.54]
[1759094076063,16.86015703,207.59,207.57,0.66]
[1759094077674,16.86015703,207.59,207.56,36.88]
[1759094077877,17.58015703,207.59,207.56,36.88]
[1759094080791,0.72,207.58,207.56,36.88]
[1759094080995,0.72,207.58,207.53,0.66]
[1759094081179,16.86178156,207.57,207.54,36.9]
[1759094081484,17.58178156,207.57,207.54,37.56]
[1759094081687,17.58178156,207.57,207.54,36.9]
[1759094082076,4.81765187,207.57,207.55,0.66]
[1759094082675,4.81765187,207.57,207.52,0.1]
[1759094082676,4.81765187,207.57,207.56,0.66]
[1759094083094,4.81741978,207.58,207.56,0.66]
[1759094083387,4.81741978,207.58,207.57,0.66]
[1759094083590,4.81741978,207.58,207.55,2.32538923]
[1759094083780,4.81741978,207.58,207.56,0.66]
[1759094084402,16.86015703,207.59,207.56,0.66]
[1759094085070,17.58015703,207.59,207.56,0.66]
[1759094085276,17.58015703,207.59,207.55,1.66538923]
[1759094085595,17.58015703,207.59,207.55,2.32538923]
[1759094086390,17.58015703,207.59,207.56,0.66]
[1759094088692,4.81672366,207.61,207.57,13.59559401]
[1759094088893,16.85853282,207.61,207.58,37.56]
[1759094089197,17.57853282,207.61,207.58,39.22538923]
[1759094089496,12.04180916,207.61,207.58,39.22538923]
[1759094089703,12.76180916,207.61,207.58,36.9]
[1759094090394,17.57853282,207.61,207.58,36.9]
[1759094090700,17.57853282,207.61,207.58,37.61]
[1759094091401,12.04180916,207.61,207.58,37.61]
[1759094091577,12.04180916,207.61,207.58,36.9]
[1759094091778,12.04180916,207.61,207.59,0.71]
[1759094092000,12.04180916,207.61,207.6,0.71]
[1759094093000,12.04180916,207.61,207.58,37.61]
[1759094093196,12.04180916,207.61,207.59,0.71]
[1759094093594,4.81649166,207.62,207.59,1.66538923]
[1759094093807,4.81649166,207.62,207.58,36.9]
[1759094093983,4.81649166,207.62,207.59,2.37538923]
[1759094094184,4.81649166,207.62,207.6,0.71]
[1759094095783,53.24145573,207.64,207.59,1.66538923]
[1759094095784,17.56690892,207.63,207.59,2.37538923]
[1759094095980,17.56690892,207.63,207.6,0.71]
[1759094097099,17.56690892,207.63,207.59,1.66538923]
[1759094097302,17.56690892,207.63,207.59,2.37538923]
[1759094098626,17.56690892,207.63,207.6,0.71]
[1759094098914,17.56690892,207.63,207.59,1.66538923]
[1759094099088,17.56690892,207.63,207.59,2.37538923]
[1759094099293,17.56690892,207.63,207.59,1.66538923]
[1759094099592,17.56690892,207.63,207.6,0.71]
[1759094100510,5.52625969,207.63,207.6,0.71]
[1759094100712,4.81625969,207.63,207.59,1.66538923]
[1759094100913,0.71,207.62,207.6,13.59559401]
[1759094101112,42.85690892,207.63,207.6,13.59559401]
[1759094101316,0.71,207.61,207.57,1.66538923]
[1759094101632,0.71,207.6,207.55,13.59559401]
[1759094101789,0.71,207.59,207.56,36.88]
[1759094101993,0.71,207.58,207.56,36.88]
[1759094102395,14.4931037,207.61,207.56,36.88]
[1759094102600,16.86015703,207.59,207.56,36.88]
[1759094102800,4.81718772,207.59,207.57,0.71]
[1759094104011,16.85934489,207.6,207.56,39.4851024]
[1759094104213,17.56934489,207.6,207.56,40.1951024]
[1759094104394,0.71,207.59,207.56,37.59]
[1759094104596,17.56934489,207.6,207.56,37.59]
[1759094105615,0.71,207.59,207.56,36.88]
[1759094105812,0.71,207.58,207.56,36.88]
[1759094107110,0.71,207.57,207.56,36.88]
[1759094108009,0.71,207.57,207.52,0.1]
[1759094108303,0.71,207.57,207.53,36.9]
[1759094108502,0.71,207.56,207.53,36.9]
[1759094108714,0.71,207.55,207.53,36.9]
[1759094108910,0.71,207.54,207.53,36.9]
[1759094109118,5.52834827,207.54,207.53,36.9]
[1759094109710,5.52834827,207.54,207.52,0.1]
[1759094109916,0.71,207.53,207.52,0.1]
[1759094110924,5.52858044,207.53,207.52,0.1]
[1759094111828,8.13368284,207.53,207.52,1e-08]
[1759094112209,22.63309078,207.53,207.52,1e-08]
[1759094114436,26.0,207.5,207.49,1e-08]
[1759094114744,28.6051024,207.5,207.49,1e-08]
[1759094114916,34.1243795,207.5,207.49,1e-08]
[1759094115107,36.05782079,207.5,207.49,1e-08]
[1759094118429,33.45271839,207.5,207.49,1e-08]
[1759094123634,32.75271839,207.5,207.49,0.67000001]
[1759094123834,32.75271839,207.5,207.49,1e-08]
[1759094126037,32.75271839,207.5,207.49,0.67000001]
[1759094126337,6.75271839,207.5,207.49,0.67000001]
[1759094126529,12.04645111,207.53,207.49,0.67000001]
[1759094127635,4.81858044,207.53,207.5,13.59559401]
[1759094127840,4.81858044,207.53,207.51,3.2751024]
[1759094128039,2.6051024,207.54,207.52,0.67]
[1759094128359,4.81811611,207.55,207.52,0.67]
[1759094129441,12.0449664,207.56,207.52,0.67]
[1759094129649,4.81765187,207.57,207.53,16.20069641]
[1759094129942,4.81765187,207.57,207.54,0.67]
[1759094130143,4.81731994,207.59,207.55,13.59559401]
[1759094130331,4.81649166,207.62,207.58,2.6051024]
[1759094130524,4.81649166,207.62,207.59,0.67]
[1759094131327,4.81649166,207.62,207.6,0.67]
[1759094131527,12.04088989,207.63,207.6,0.67]
[1759094133061,12.04088989,207.63,207.57,16.20069641]
[1759094133265,2.6051024,207.59,207.53,0.67]
[1759094133553,2.6051024,207.57,207.53,0.67]
[1759094133738,2.6051024,207.57,207.54,0.67]
[1759094134465,4.81788398,207.56,207.51,51.22559401]
[1759094134632,3.3151024,207.55,207.51,36.96]
[1759094134831,0.71,207.54,207.51,36.96]
[1759094135031,2.6051024,207.55,207.51,37.63]
[1759094135247,3.3151024,207.55,207.51,37.63]
[1759094135446,28.6051024,207.53,207.49,1e-08]
[1759094135750,2.6051024,207.5,207.49,1e-08]
[1759094137043,4.8192771,207.5,207.49,1e-08]
[1759094138260,4.81904486,207.51,207.49,1e-08]
[1759094139054,4.81904486,207.51,207.46,0.1]
[1759094139055,26.0,207.48,207.46,0.1]
[1759094139251,28.6051024,207.48,207.46,0.1]
[1759094139562,26.71,207.47,207.46,0.1]
[1759094139755,26.71,207.47,207.43,0.1]
[1759094139955,2.6051024,207.44,207.43,0.1]
[1759094140266,7.42577343,207.44,207.43,0.1]